lending/lending_fUSD_20260110
["ID","MTS","AMOUNT","RATE_DAILY","PERIOD"]
[401165300,1768006247864,-150.0,0.00017578,2]
[401165301,1768006247874,-150.0,0.00017585,2]
[401165302,1768006247884,-150.0,0.00017587,2]
[401165303,1768006247895,-150.0,0.0001759,2]
[401165304,1768006247904,-150.0,0.00017591,2]
[401165305,1768006247914,-150.0,0.00017594,2]
[401165306,1768006247924,-150.0,0.00017597,2]
[401165307,1768006247934,-150.0,0.000176,2]
[401165308,1768006247943,-150.0,0.00017606,2]
[401165309,1768006247953,-150.0,0.00017611,2]
[401165310,1768006247963,-150.0,0.00017612,2]
[401165311,1768006247974,-150.0,0.00017613,2]
[401165312,1768006247984,-150.0,0.00017614,2]
[401165313,1768006247994,-150.0,0.00017614,2]
[401165314,1768006248004,-500.0,0.00017616,2]
[401165315,1768006248014,-150.0,0.0001762,2]
[401165316,1768006248023,-168.0,0.00017621,2]
[401165317,1768006248033,-150.0,0.00017622,2]
[401165318,1768006248043,-150.0,0.00017624,2]
[401165319,1768006248053,-150.0,0.00017625,2]
[401165320,1768006248063,-150.0,0.00017632,2]
[401165321,1768006248073,-150.0,0.00017635,2]
[401165322,1768006248084,-574.12855637,0.00017639,2]
[401165323,1768006248094,-150.0,0.0001764,2]
[401165324,1768006248104,-150.0,0.0001764,2]
[401165325,1768006248114,-150.0,0.0001764,2]
[401165326,1768006248123,-150.0,0.0001764,2]
[401165327,1768006248133,-9190.30676368,0.0001764,2]
[401165328,1768006248143,-150.0,0.00017644,2]
[401165329,1768006248153,-150.0,0.00017644,2]
[401165330,1768006248163,-150.0,0.00017645,2]
[401165331,1768006248173,-150.0,0.00017651,2]
[401165332,1768006248182,-150.0,0.00017652,2]
[401165333,1768006248192,-150.0,0.00017658,2]
[401165334,1768006248202,-150.0,0.00017662,2]
[401165335,1768006248212,-150.0,0.00017667,2]
[401165336,1768006248222,-7277.04437014,0.00017667,2]
[401165337,1768006248232,-4256.80955003,0.00017667,2]
[401165338,1768006248242,-150.0,0.00017668,2]
[401165339,1768006248252,-150.0,0.0001767,2]
[401165340,1768006248262,-500.0,0.00017671,2]
[401165341,1768006248272,-150.0,0.00017673,2]
[401165342,1768006248282,-150.0,0.00017678,2]
[401165343,1768006248292,-150.0,0.00017679,2]
[401165344,1768006248302,-150.0,0.00017681,2]
[401165345,1768006248312,-150.0,0.00017681,2]
[401165346,1768006248322,-150.79,0.00017682,2]
[401165347,1768006248332,-150.0,0.00017689,2]
[401165348,1768006248343,-150.0,0.00017693,2]
[401165349,1768006248352,-150.0,0.00017695,2]
[401165350,1768006248362,-150.0,0.00017696,2]
[401165351,1768006248372,-150.0,0.000177,2]
[401165352,1768006248383,-1000.0,0.000177,2]
[401165353,1768006248395,-150.0,0.00017704,2]
[401165354,1768006248406,-150.0,0.00017704,2]
[401165355,1768006248417,-1000.0,0.00017709,2]
[401165356,1768006248428,-150.0,0.00017711,2]
[401165357,1768006248439,-150.0,0.00017714,2]
[401165358,1768006248454,-150.0,0.00017719,2]
[401165359,1768006248465,-150.0,0.00017721,2]
[401165360,1768006248476,-150.0,0.00017723,2]
[401165361,1768006248487,-500.0,0.00017726,2]
[401165362,1768006248497,-150.0,0.00017727,2]
[401165363,1768006248507,-150.0,0.0001773,2]
[401165364,1768006248520,-6709.59935273,0.0001773,2]
[401165365,1768006248530,-150.0,0.00017731,2]
[401165366,1768006248540,-150.0,0.00017733,2]
[401165367,1768006248551,-150.0,0.00017734,2]
[401165368,1768006248562,-150.0,0.00017738,2]
[401165369,1768006248572,-21597.0,0.00017741,2]
[401165370,1768006248582,-150.0,0.00017743,2]
[401165371,1768006248592,-150.0,0.00017743,2]
[401165372,1768006248603,-150.0,0.00017746,2]
[401165373,1768006248612,-150.0,0.00017749,2]
[401165374,1768006248622,-150.0,0.00017751,2]
[401165375,1768006248633,-150.0,0.00017755,2]
[401165376,1768006248643,-150.0,0.00017756,2]
[401165377,1768006248653,-150.0,0.00017756,2]
[401165378,1768006248663,-150.0,0.00017758,2]
[401165379,1768006248673,-150.0,0.00017772,2]
[401165380,1768006248683,-150.0,0.00017772,2]
[401165381,1768006248692,-150.0,0.00017775,2]
[401165382,1768006248703,-150.0,0.00017775,2]
[401165383,1768006248714,-150.0,0.00017775,2]
[401165384,1768006248725,-150.0,0.00017778,2]
[401165385,1768006248736,-150.0,0.00017778,2]
[401165386,1768006248746,-500.0,0.00017781,2]
[401165387,1768006248756,-150.0,0.00017785,2]
[401165388,1768006248766,-150.0,0.00017794,2]
[401165389,1768006248776,-150.0,0.00017795,2]
[401165390,1768006248786,-150.0,0.00017795,2]
[401165391,1768006248797,-150.0,0.00017797,2]
[401165392,1768006248807,-150.0,0.000178,2]
[401165393,1768006248817,-1000.0,0.000178,2]
[401165394,1768006248828,-150.0,0.00017806,2]
[401165395,1768006248838,-150.0,0.00017807,2]
[401165396,1768006248848,-200.35779431,0.00017808,2]
[401165397,1768006248857,-150.0,0.00017812,2]
[401165398,1768006248868,-150.0,0.00017812,2]
[401165399,1768006248878,-150.0,0.00017816,2]
[401165400,1768006248888,-150.0,0.00017818,2]
[401165401,1768006248897,-151.0,0.00017819,2]
[401165402,1768006248908,-150.0,0.0001782,2]
[401165403,1768006248917,-6019.8836,0.0001782,2]
[401165404,1768006248927,-6019.88361,0.0001782,2]
[401165405,1768006248937,-6019.8836,0.0001782,2]
[401165406,1768006248947,-6019.8836,0.0001782,2]
[401165407,1768006248957,-150.0,0.00017822,2]
[401165408,1768006248968,-150.0,0.00017823,2]
[401165409,1768006248979,-150.0,0.00017831,2]
[401165410,1768006248989,-150.0,0.00017834,2]
[401165411,1768006248999,-500.0,0.00017836,2]
[401165412,1768006249009,-150.0,0.00017836,2]
[401165413,1768006249019,-150.0,0.00017839,2]
[401165414,1768006249028,-150.0,0.00017841,2]
[401165415,1768006249039,-150.0,0.00017844,2]
[401165416,1768006249048,-150.0,0.00017848,2]
[401165417,1768006249058,-150.0,0.0001785,2]
[401165418,1768006249068,-2000.0,0.00017856,2]
[401165419,1768006249077,-200.0,0.00017856,2]
[401165420,1768006249088,-150.0,0.00017857,2]
[401165421,1768006249098,-150.0,0.00017862,2]
[401165422,1768006249108,-150.0,0.00017863,2]
[401165423,1768006249118,-150.0,0.00017866,2]
[401165424,1768006249128,-150.0,0.00017867,2]
[401165425,1768006249139,-150.0,0.00017869,2]
[401165426,1768006249148,-150.0,0.00017871,2]
[401165427,1768006249158,-150.0,0.00017871,2]
[401165428,1768006249169,-150.0,0.00017873,2]
[401165429,1768006249179,-150.0,0.00017877,2]
[401165430,1768006249189,-150.0,0.00017886,2]
[401165431,1768006249200,-150.0,0.00017887,2]
[401165432,1768006249210,-150.0,0.00017889,2]
[401165433,1768006249220,-150.0,0.00017889,2]
[401165434,1768006249231,-424.92481471,0.0001789,2]
[401165435,1768006249241,-25000.0,0.00017891,3]
[401165436,1768006249251,-150.0,0.00017893,2]
[401165437,1768006249261,-168.0,0.00017897,2]
[401165438,1768006249271,-150.0,0.00017898,2]
[401165439,1768006249282,-150.0,0.00017899,2]
[401165440,1768006249291,-321.85851859,0.00017899,2]
[401165441,1768006249301,-460.28719173,0.000179,2]
[401165442,1768006249311,-25000.0,0.000179,3]
[401165443,1768006249321,-10000.0,0.000179,2]
[401165444,1768006249331,-6021.86823211,0.000179,3]
[401165445,1768006249341,-565.17771938,0.000179,2]
[401165446,1768006249352,-666.08677066,0.000179,2]
[401165447,1768006249362,-7277.04437014,0.000179,2]
[401165448,1768006249372,-4256.80955003,0.000179,2]
[401165449,1768006249382,-5419.66632669,0.000179,2]
[401165450,1768006249392,-1000.0,0.000179,2]
[401165451,1768006249402,-9429.88942881,0.000179,2]
[401165452,1768006249412,-1438.65953171,0.000179,2]
[401165453,1768006249423,-1438.65953157,0.000179,2]
[401165454,1768006249432,-1438.65953157,0.000179,2]
[401165455,1768006249442,-1438.65953157,0.000179,2]
[401165456,1768006249456,-1438.65953157,0.000179,2]
[401165457,1768006249466,-1438.65953157,0.000179,2]
[401165458,1768006249544,-7361.0,0.000179,2]
[401165459,1768006249555,-150.0,0.00017906,2]
[401165460,1768006249566,-466.0,0.00017908,2]
[401165461,1768006249576,-150.0,0.00017909,2]
[401165462,1768006249586,-151.0,0.00017909,2]
[401165463,1768006249596,-252.0,0.0001791,2]
[401165464,1768006249607,-150.0,0.0001791,2]
[401165465,1768006249618,-466.0,0.0001791,2]
[401165466,1768006249629,-150.0,0.00017911,2]
[401165467,1768006249639,-150.0,0.00017917,2]
[401165468,1768006249650,-150.0,0.00017918,2]
[401165469,1768006249659,-150.0,0.00017919,2]
[401165470,1768006249670,-150.0,0.00017924,2]
[401165471,1768006249680,-21597.0,0.00017924,2]
[401165472,1768006249690,-150.0,0.00017925,2]
[401165473,1768006249700,-150.0,0.00017932,2]
[401165474,1768006249710,-150.0,0.00017933,2]
[401165475,1768006249720,-150.0,0.00017936,2]
[401165476,1768006249730,-150.0,0.00017939,2]
[401165477,1768006249740,-150.0,0.00017944,2]
[401165478,1768006249752,-150.0,0.00017945,2]
[401165479,1768006249762,-178.16727866,0.00017946,2]
[401165480,1768006249772,-150.0,0.00017946,2]
[401165481,1768006249783,-150.0,0.00017949,2]
[401165482,1768006249792,-150.0,0.00017954,2]
[401165483,1768006249803,-150.0,0.00017956,2]
[401165484,1768006249813,-150.0,0.00017959,2]
[401165485,1768006249823,-150.0,0.00017963,2]
[401165486,1768006249833,-863.4159439,0.00017965,2]
[401165487,1768006249843,-10231.6766945,0.00017965,2]
[401165488,1768006249852,-17606.8677939,0.00017965,2]
[401165489,1768006249862,-16442.1520573,0.00017965,2]
[401165490,1768006249872,-6848.2935645,0.00017965,2]
[401165491,1768006249881,-108573.9511758,0.00017965,2]
[401165492,1768006249891,-150.0,0.00017972,2]
[401165493,1768006249902,-150.18655509,0.00017973,2]
[401165494,1768006249912,-500.0,0.00017973,2]
[401165495,1768006249922,-609.94892981,0.00017973,2]
[401165496,1768006249931,-500.0,0.00017973,2]
[401165497,1768006249941,-500.0,0.00017973,2]
[401165498,1768006249951,-500.0,0.00017973,2]
[401165499,1768006249961,-500.0,0.00017973,2]
[401165500,1768006249971,-500.0,0.00017973,2]
[401165501,1768006249980,-300.14354491,0.00017973,2]
[401165502,1768006249990,-433.25363423,0.00017973,2]
[401165503,1768006250000,-260.76514571,0.00017973,2]
[401165504,1768006250010,-500.0,0.00017973,2]
[401165505,1768006250020,-500.0,0.00017973,2]
[401165506,1768006250030,-500.0,0.00017973,2]
[401165507,1768006250040,-500.0,0.00017973,2]
[401165508,1768006250050,-500.0,0.00017973,2]
[401165509,1768006250059,-500.0,0.00017973,2]
[401165510,1768006250069,-500.0,0.00017973,2]
[401165511,1768006250079,-500.0,0.00017973,2]
[401165512,1768006250089,-500.0,0.00017973,2]
[401165513,1768006250099,-500.94146496,0.00017973,2]
[401165514,1768006250109,-190.88377587,0.00017973,2]
[401165515,1768006250119,-500.0,0.00017973,2]
[401165516,1768006250130,-500.0,0.00017973,2]
[401165517,1768006250140,-500.0,0.00017973,2]
[401165518,1768006250150,-500.0,0.00017973,2]
[401165519,1768006250160,-500.0,0.00017973,2]
[401165520,1768006250170,-500.0,0.00017973,2]
[401165521,1768006250180,-500.0,0.00017973,2]
[401165522,1768006250190,-500.0,0.00017973,2]
[401165523,1768006250199,-500.0,0.00017973,2]
[401165524,1768006250210,-500.0,0.00017973,2]
[401165525,1768006250220,-500.0,0.00017973,2]
[401165526,1768006250230,-500.0,0.00017973,2]
[401165527,1768006250240,-500.0,0.00017973,2]
[401165528,1768006250250,-500.0,0.00017973,2]
[401165529,1768006250260,-500.0,0.00017973,2]
[401165530,1768006250270,-500.0,0.00017973,2]
[401165531,1768006250281,-571.18523256,0.00017973,2]
[401165532,1768006250291,-500.0,0.00017973,2]
[401165533,1768006250302,-500.0,0.00017973,2]
[401165534,1768006250312,-500.0,0.00017973,2]
[401165535,1768006250322,-500.0,0.00017973,2]
[401165536,1768006250332,-500.0,0.00017973,2]
[401165537,1768006250341,-587.72916305,0.00017973,2]
[401165538,1768006250351,-500.0,0.00017973,2]
[401165539,1768006250361,-500.0,0.00017973,2]
[401165540,1768006250372,-500.0,0.00017973,2]
[401165541,1768006250381,-500.0,0.00017973,2]
[401165542,1768006250391,-150.0,0.00017973,2]
[401165543,1768006250401,-150.0,0.00017973,2]
[401165544,1768006250411,-150.0,0.00017973,2]
[401165545,1768006250421,-150.0,0.00017975,2]
[401165546,1768006250431,-150.0,0.00017977,2]
[401165547,1768006250441,-150.0,0.00017978,2]
[401165548,1768006250455,-150.0,0.0001798,2]
[401165549,1768006250464,-150.0,0.00017981,2]
[401165550,1768006250474,-168.0,0.00017982,2]
[401165551,1768006250483,-282.0930968,0.0001799,2]
[401165552,1768006250494,-282.0930968,0.0001799,2]
[401165553,1768006250503,-150.1,0.00017997,2]
[401165554,1768006250513,-150.1,0.00017997,2]
[401165555,1768006250524,-168.0,0.00017998,2]
[401165556,1768006250535,-161.8167014,0.00017999,2]
[401165557,1768006250545,-300.0,0.00017999,2]
[401165558,1768006250555,-300.0,0.00017999,2]
[401165559,1768006250564,-300.0,0.00017999,2]
[401165560,1768006250574,-300.0,0.00017999,2]
[401165561,1768006250584,-300.0,0.00017999,2]
[401165562,1768006250593,-666.0,0.00017999,2]
[401165563,1768006250604,-300.0,0.00017999,2]
[401165564,1768006250613,-227.82348982,0.00018,2]
[401165565,1768006250624,-166.98497476,0.00018,2]
[401165566,1768006250635,-164.45982182,0.00018,2]
[401165567,1768006250645,-205.42556865,0.00018,2]
[401165568,1768006250656,-211.04252202,0.00018,2]
[401165569,1768006250665,-151.06420605,0.00018,2]
[401165570,1768006250676,-285.586954,0.00018,2]
[401165571,1768006250687,-244.06861023,0.00018,2]
[401165572,1768006250698,-297.27183776,0.00018,2]
[401165573,1768006250708,-172.35755582,0.00018,2]
[401165574,1768006250719,-189.28919709,0.00018,2]
[401165575,1768006250730,-212.96557144,0.00018,2]
[401165576,1768006250740,-228.74213308,0.00018,2]
[401165577,1768006250750,-157.99284637,0.00018,2]
[401165578,1768006250760,-195.57171402,0.00018,2]
[401165579,1768006250770,-247.0,0.00018,2]
[401165580,1768006250780,-1419081.99832968,0.00018,2]
[401165581,1768006251326,-11965.64371763,0.00018,2]
[401165582,1768006252463,-151.0,0.00015937,2]
[401165583,1768006252476,-721.26117996,0.000179,2]
[401165584,1768006252489,-717.39835161,0.000179,2]
[401165585,1768006252501,-208.51855819,0.00018,2]
[401165586,1768006252746,-414.11119063,0.00017041,2]
[401165587,1768006253119,-151.0,0.00015937,2]
[401165588,1768006253130,-68.70880937,0.00017041,2]
[401165589,1768006253140,-18794.27486667,0.00018,2]
[401165590,1768006253160,-19056.80752848,0.00018,2]
[401165591,1768006253173,-1110.06940007,0.00018,2]
[401165592,1768006253265,-1978.17284385,0.00018,2]
[401165593,1768006253277,-2187.70181487,0.00018,2]
[401165594,1768006253288,-1362.65454814,0.00018,2]
[401165595,1768006253326,-419.36039398,0.00018,2]
[401165596,1768006585280,5000.0,0.000202,30]
[401165599,1768007431446,-173.23414075,0.00015286,2]
[401165600,1768007431455,-277.0,0.00015286,2]
[401165601,1768007431464,-14.49528907,0.00015386,2]
[401165602,1768007431475,-375.12799992,0.00015386,2]
[401165603,1768007431486,-835.60817854,0.00015386,2]
[401165604,1768007431497,-421.98353247,0.00015386,2]
[401165605,1768007431506,-180.8080678,0.00015386,2]
[401165606,1768007431515,-144.5632153,0.00015393,2]
[401165607,1768007431525,-50.4367847,0.00015393,2]
[401165608,1768007431534,-299.19084191,0.00015499,2]
[401165609,1768007431543,-193.28429168,0.00015524,2]
[401165610,1768007431574,-7.39275119,0.00015524,2]
[401165611,1768007431583,-392.60724881,0.00015599,2]
[401165612,1768007431601,-807.39275119,0.00015599,2]
[401165613,1768007431611,-169.86789222,0.000156,2]
[401165614,1768007431620,-435.99407286,0.000156,2]
[401165615,1768007431631,-42.47862714,0.000156,2]
[401165616,1768007431640,-615.10463881,0.000156,2]
[401165617,1768007431651,-1792.03382791,0.000156,2]
[401165618,1768007431662,-500.0,0.000156,2]
[401165619,1768007431713,-3798.60213328,0.000156,2]
[401165621,1768007431722,-4790.11963347,0.000156,2]
[401165623,1768007431734,-13629.78749523,0.000156,2]
[401165625,1768007431744,-1059.92685727,0.000156,2]
[401165630,1768007431786,-3673.29706504,0.000156,2]
[401165632,1768007431797,-533.34640399,0.000156,2]
[401165634,1768007431808,-4606.22156215,0.000156,2]
[401165636,1768007431819,-522.90611704,0.000156,2]
[401165637,1768007431831,-372.51000098,0.000156,2]
[401165672,1768007438207,-500.0,0.00015599,2]
[401165673,1768007438217,-500.0,0.00015599,2]
[401165674,1768007438226,-500.0,0.00015599,2]
[401165675,1768007438236,-500.0,0.00015599,2]
[401165676,1768007438245,-500.0,0.00015599,2]
[401165677,1768007438254,-600.53357427,0.00015599,2]
[401165678,1768007438263,-1072.80940161,0.000156,2]
[401165679,1768007438286,-1855.68706775,0.000156,2]
[401165680,1768007438358,-48282.6492697,0.000156,2]
[401165681,1768007438376,-3405.21314503,0.000156,2]
[401165682,1768007439544,-489.29525831,0.000156,2]
[401165683,1768007439656,-493.99809697,0.000156,2]
[401165684,1768007439766,-915212.23262546,0.000156,2]
[401165685,1768007439776,-300.0,0.00015624,2]
[401165686,1768007439787,-7277.04437016,0.00015625,2]
[401165687,1768007439796,-4256.80955008,0.00015625,2]
[401165688,1768007439805,-151.0,0.00015691,2]
[401165689,1768007439815,-151.0,0.00015691,2]
[401165690,1768007439825,-151.0,0.00015691,2]
[401165691,1768007439834,-151.0,0.00015691,2]
[401165692,1768007439843,-151.0,0.00015691,2]
[401165693,1768007439853,-151.0,0.00015691,2]
[401165694,1768007439864,-151.0,0.00015691,2]
[401165695,1768007439874,-151.0,0.00015691,2]
[401165696,1768007439883,-151.0,0.00015691,2]
[401165697,1768007439893,-151.0,0.00015691,2]
[401165698,1768007439903,-151.0,0.00015691,2]
[401165699,1768007439913,-151.0,0.00015691,2]
[401165700,1768007439923,-151.0,0.00015691,2]
[401165701,1768007439932,-151.0,0.00015691,2]
[401165702,1768007439941,-500.0,0.00015691,2]
[401165703,1768007439951,-151.0,0.00015691,2]
[401165704,1768007439960,-500.0,0.00015691,2]
[401165705,1768007439970,-200.0,0.00015691,2]
[401165706,1768007439979,-151.0,0.00015691,2]
[401165708,1768007439989,-500.0,0.00015691,2]
[401165709,1768007439998,-151.0,0.00015691,2]
[401165710,1768007440008,-500.0,0.00015691,2]
[401165711,1768007440019,-151.0,0.00015691,2]
[401165712,1768007440031,-500.0,0.00015691,2]
[401165713,1768007440041,-151.0,0.00015691,2]
[401165714,1768007440051,-500.0,0.00015691,2]
[401165715,1768007440061,-151.0,0.00015691,2]
[401165716,1768007440071,-500.0,0.00015691,2]
[401165717,1768007440080,-151.0,0.00015691,2]
[401165718,1768007440090,-151.0,0.00015691,2]
[401165719,1768007440101,-200.0,0.00015691,2]
[401165720,1768007440110,-151.0,0.00015691,2]
[401165721,1768007440119,-151.0,0.00015691,2]
[401165722,1768007440129,-151.0,0.00015691,2]
[401165723,1768007440138,-151.0,0.00015691,2]
[401165724,1768007440147,-270.0,0.00015699,2]
[401165725,1768007440158,-150.0,0.00015699,2]
[401165726,1768007440168,-200.0,0.00015726,2]
[401165727,1768007440178,-1000.0,0.000158,2]
[401165728,1768007440188,-14613.06,0.00015807,2]
[401165729,1768007440197,-151.0,0.00015864,2]
[401165730,1768007440207,-151.0,0.00015864,2]
[401165731,1768007440217,-151.0,0.0001587,2]
[401165732,1768007440226,-151.0,0.0001587,2]
[401165733,1768007440236,-7277.04437014,0.00015878,2]
[401165734,1768007440246,-4256.80955003,0.00015878,2]
[401165735,1768007440256,-318.96351241,0.000159,2]
[401165736,1768007440266,-245.36,0.00015918,2]
[401165737,1768007440275,-999.0,0.00015945,3]
[401165738,1768007440285,-161.18,0.00015948,2]
[401165739,1768007440295,-57616.85,0.00016069,2]
[401165740,1768007440304,-1754.68,0.00016078,2]
[401165741,1768007440314,-7277.04437014,0.00016131,2]
[401165742,1768007440324,-4256.80955003,0.00016131,2]
[401165743,1768007440333,-150.0,0.000162,2]
[401165744,1768007440342,-150.0,0.000162,2]
[401165745,1768007440352,-150.0,0.000162,2]
[401165746,1768007440361,-150.0,0.000162,2]
[401165747,1768007440370,-150.0,0.000162,2]
[401165748,1768007440380,-150.0,0.000162,2]
[401165749,1768007440389,-150.0,0.000162,2]
[401165750,1768007440399,-150.0,0.000162,2]
[401165751,1768007440408,-150.0,0.000162,2]
[401165752,1768007440418,-150.0,0.000162,2]
[401165753,1768007440428,-150.0,0.000162,2]
[401165754,1768007440443,-150.20447151,0.000162,2]
[401165755,1768007440455,-150.0,0.000162,2]
[401165756,1768007440471,-150.0,0.000162,2]
[401165757,1768007440480,-150.0,0.000162,2]
[401165758,1768007440491,-150.0,0.00016219,2]
[401165759,1768007440501,-150.0,0.0001622,2]
[401165760,1768007440511,-150.0,0.00016222,2]
[401165761,1768007440520,-150.0,0.00016223,2]
[401165762,1768007440530,-150.0,0.00016225,2]
[401165763,1768007440539,-150.0,0.00016227,2]
[401165764,1768007440548,-150.0,0.00016228,2]
[401165765,1768007440558,-150.0,0.00016237,2]
[401165766,1768007440568,-150.0,0.00016241,2]
[401165767,1768007440577,-661.58,0.00016241,2]
[401165768,1768007440586,-661.58,0.00016241,2]
[401165769,1768007440596,-661.58,0.00016241,2]
[401165770,1768007440606,-150.0,0.00016244,2]
[401165771,1768007440615,-150.0,0.00016246,2]
[401165772,1768007440624,-500.0,0.00016247,2]
[401165773,1768007440634,-150.0,0.00016251,2]
[401165774,1768007440643,-150.0,0.00016254,2]
[401165775,1768007440653,-150.0,0.00016255,2]
[401165776,1768007440662,-150.0,0.00016256,2]
[401165777,1768007440671,-150.0,0.00016261,2]
[401165778,1768007440681,-150.0,0.00016267,2]
[401165779,1768007440692,-150.0,0.00016268,2]
[401165780,1768007440701,-150.0,0.00016275,2]
[401165781,1768007440711,-150.0,0.00016276,2]
[401165782,1768007440721,-150.0,0.00016281,2]
[401165783,1768007440731,-150.0,0.00016282,2]
[401165784,1768007440741,-150.0,0.00016283,2]
[401165785,1768007440750,-150.0,0.00016289,2]
[401165786,1768007440759,-150.0,0.0001629,2]
[401165787,1768007440769,-150.0,0.00016291,2]
[401165788,1768007440779,-500.0,0.00016293,2]
[401165789,1768007440789,-150.0,0.00016294,2]
[401165790,1768007440798,-150.0,0.00016301,2]
[401165791,1768007440808,-150.0,0.00016302,2]
[401165792,1768007440818,-150.0,0.00016307,2]
[401165793,1768007440827,-150.0,0.00016311,2]
[401165794,1768007440837,-150.0,0.00016311,2]
[401165795,1768007440847,-150.0,0.00016312,2]
[401165796,1768007440857,-150.0,0.00016314,2]
[401165797,1768007440866,-150.0,0.00016323,2]
[401165798,1768007440876,-150.0,0.00016327,2]
[401165799,1768007440885,-150.0,0.00016329,2]
[401165800,1768007440895,-150.0,0.00016331,2]
[401165801,1768007440904,-150.0,0.00016333,2]
[401165802,1768007440914,-150.0,0.00016334,2]
[401165803,1768007440923,-150.0,0.00016337,2]
[401165804,1768007440933,-150.0,0.00016338,2]
[401165805,1768007440942,-150.0,0.00016343,2]
[401165806,1768007440952,-150.0,0.0001635,2]
[401165807,1768007440961,-150.0,0.00016352,2]
[401165808,1768007441316,-150.0,0.00016356,2]
[401165809,1768007441356,-150.0,0.00016359,2]
[401165810,1768007441366,-150.0,0.00016361,2]
[401165811,1768007441375,-150.0,0.00016364,2]
[401165812,1768007441385,-150.0,0.00016366,2]
[401165813,1768007441395,-169.86789219,0.00016367,2]
[401165814,1768007441405,-150.0,0.00016369,2]
[401165815,1768007441414,-150.0,0.00016372,2]
[401165816,1768007441423,-500.0,0.00016372,2]
[401165817,1768007441434,-150.0,0.00016372,2]
[401165818,1768007441443,-150.0,0.00016372,2]
[401165819,1768007441452,-500.0,0.00016372,2]
[401165820,1768007441462,-150.0,0.00016372,2]
[401165821,1768007441471,-150.0,0.00016372,2]
[401165822,1768007441481,-150.0,0.00016372,2]
[401165823,1768007441490,-150.0,0.00016372,2]
[401165824,1768007441500,-150.35471955,0.00016372,2]
[401165825,1768007441509,-150.0,0.00016377,2]
[401165826,1768007441518,-150.0,0.00016378,2]
[401165827,1768007441528,-1112.8,0.00016378,2]
[401165828,1768007441537,-150.0,0.0001638,2]
[401165829,1768007441546,-150.0,0.00016382,2]
[401165830,1768007441556,-7277.04437014,0.00016383,2]
[401165831,1768007441565,-4256.80955003,0.00016383,2]
[401165832,1768007441574,-150.0,0.00016384,2]
[401165833,1768007441584,-150.0,0.00016387,2]
[401165834,1768007441593,-150.0,0.00016388,2]
[401165835,1768007441604,-150.0,0.00016394,2]
[401165836,1768007441613,-150.0,0.000164,2]
[401165837,1768007441623,-150.0,0.00016403,2]
[401165838,1768007441632,-150.0,0.00016405,2]
[401165839,1768007441642,-150.0,0.00016405,2]
[401165840,1768007441651,-150.0,0.00016406,2]
[401165841,1768007441660,-150.0,0.00016415,2]
[401165842,1768007441670,-166.66,0.0001642,2]
[401165843,1768007441679,-150.0,0.00016422,2]
[401165844,1768007441688,-150.0,0.00016422,2]
[401165845,1768007441698,-150.0,0.00016425,2]
[401165846,1768007441707,-150.0,0.00016425,2]